[Event "Titled Tuesday Blitz July 11 Late 2023"]
[White "Osmonbekov, Talaibek"]
[Black "Haitin, Ilja"]
[WhiteFideId "2017253"]
[BlackFideId "4501764"]
[WhiteElo "2204"]
[BlackElo "2399"]
[Result "0-1"]
[Round "6"]
[TimeControl "180+2"]
[Date "2023.07.11"]
[WhiteClock "0:00:00"]
[BlackClock "0:00:44"]
[Board "142"]

1. d4 {[%clk 0:03:00]}  e6 {[%clk 0:02:24]} 2. e4 {[%clk 0:02:57]}  d5 {[%clk 0:02:23]} 3. e5 {[%clk 0:02:57]}  c5 {[%clk 0:02:21]} 4. c3 {[%clk 0:02:57]}  Qb6 {[%clk 0:02:20]} 5. Nf3 {[%clk 0:02:57]}  Bd7 {[%clk 0:02:21]} 6. Bd3 {[%clk 0:02:41]}  Bb5 {[%clk 0:02:20]} 7. O-O {[%clk 0:02:40]}  Bxd3 {[%clk 0:02:19]} 8. Qxd3 {[%clk 0:02:40]}  Nc6 {[%clk 0:02:19]} 9. a3 {[%clk 0:02:23]}  cxd4 {[%clk 0:02:19]} 10. cxd4 {[%clk 0:02:23]}  Nge7 {[%clk 0:02:20]} 11. b4 {[%clk 0:02:19]}  Nf5 {[%clk 0:02:18]} 12. Bb2 {[%clk 0:02:19]}  Be7 {[%clk 0:02:18]} 13. Nbd2 {[%clk 0:02:11]}  O-O {[%clk 0:02:18]} 14. Rac1 {[%clk 0:02:02]}  Rac8 {[%clk 0:02:11]} 15. Nb3 {[%clk 0:01:49]}  a6 {[%clk 0:02:00]} 16. Nc5 {[%clk 0:01:34]}  Bxc5 {[%clk 0:02:00]} 17. dxc5 {[%clk 0:01:34]}  Qb5 {[%clk 0:02:00]} 18. Qxb5 {[%clk 0:01:21]}  axb5 {[%clk 0:02:00]} 19. g4 {[%clk 0:01:20]}  Nfe7 {[%clk 0:01:57]} 20. Rfe1 {[%clk 0:01:11]}  Ng6 {[%clk 0:01:56]} 21. h4 {[%clk 0:01:09]}  Nf4 {[%clk 0:01:56]} 22. Re3 {[%clk 0:01:01]}  h5 {[%clk 0:01:52]} 23. g5 {[%clk 0:00:42]}  Ng6 {[%clk 0:01:50]} 24. Kh2 {[%clk 0:00:39]}  Rfd8 {[%clk 0:01:42]} 25. Rd1 {[%clk 0:00:36]}  Nge7 {[%clk 0:01:40]} 26. Nd4 {[%clk 0:00:24]}  Nxd4 {[%clk 0:01:39]} 27. Bxd4 {[%clk 0:00:23]}  Nf5 {[%clk 0:01:40]} 28. Rh3 {[%clk 0:00:23]}  g6 {[%clk 0:01:38]} 29. f4 {[%clk 0:00:20]}  Ra8 {[%clk 0:01:36]} 30. Bf2 {[%clk 0:00:14]}  Ra6 {[%clk 0:01:32]} 31. Rdd3 {[%clk 0:00:08]}  Rda8 {[%clk 0:01:32]} 32. Kg2 {[%clk 0:00:07]}  Kf8 {[%clk 0:01:32]} 33. Kf1 {[%clk 0:00:08]}  Ke8 {[%clk 0:01:33]} 34. Ke2 {[%clk 0:00:08]}  Kd7 {[%clk 0:01:33]} 35. Kd1 {[%clk 0:00:09]}  Kc6 {[%clk 0:01:34]} 36. Kc1 {[%clk 0:00:09]}  Rd8 {[%clk 0:01:28]} 37. Kb2 {[%clk 0:00:10]}  Raa8 {[%clk 0:01:28]} 38. Rh1 {[%clk 0:00:09]}  Rd7 {[%clk 0:01:24]} 39. Rhd1 {[%clk 0:00:09]}  Rad8 {[%clk 0:01:19]} 40. R1d2 {[%clk 0:00:09]}  d4 {[%clk 0:01:06]} 41. Kb3 {[%clk 0:00:05]}  Kd5 {[%clk 0:00:55]} 42. a4 {[%clk 0:00:05]}  bxa4+ {[%clk 0:00:52]} 43. Kxa4 {[%clk 0:00:00]}  Kc4 {[%clk 0:00:44]} 0-1


[Site "https://www.chess.com"]

[Event "Titled Tuesday Blitz July 11 Late 2023"]
[White "Lalanne, Pablo"]
[Black "Cardenas Carbajal, Nilson"]
[WhiteFideId "112151"]
[BlackFideId "8401128"]
[WhiteElo "2398"]
[BlackElo "2161"]
[Result "0-1"]
[Round "6"]
[TimeControl "180+2"]
[Date "2023.07.11"]
[WhiteClock "0:01:20"]
[BlackClock "0:01:26"]
[Board "143"]

1. d4 {[%clk 0:03:00]}  Nf6 {[%clk 0:02:59]} 2. c4 {[%clk 0:03:00]}  g6 {[%clk 0:02:57]} 3. Nc3 {[%clk 0:03:00]}  d5 {[%clk 0:02:58]} 4. cxd5 {[%clk 0:02:58]}  Nxd5 {[%clk 0:02:58]} 5. e4 {[%clk 0:02:59]}  Nxc3 {[%clk 0:02:58]} 6. bxc3 {[%clk 0:03:00]}  Bg7 {[%clk 0:02:59]} 7. Bc4 {[%clk 0:02:58]}  c5 {[%clk 0:02:58]} 8. Be3 {[%clk 0:02:54]}  Nc6 {[%clk 0:02:51]} 9. Ne2 {[%clk 0:02:52]}  O-O {[%clk 0:02:50]} 10. O-O {[%clk 0:02:50]}  Bg4 {[%clk 0:02:50]} 11. f3 {[%clk 0:02:49]}  Na5 {[%clk 0:02:48]} 12. Bd3 {[%clk 0:02:48]}  cxd4 {[%clk 0:02:47]} 13. cxd4 {[%clk 0:02:49]}  Be6 {[%clk 0:02:46]} 14. d5 {[%clk 0:02:49]}  Bxa1 {[%clk 0:02:46]} 15. Qxa1 {[%clk 0:02:48]}  f6 {[%clk 0:02:45]} 16. Bh6 {[%clk 0:02:42]}  Re8 {[%clk 0:02:43]} 17. Nf4 {[%clk 0:02:40]}  Bf7 {[%clk 0:02:35]} 18. e5 {[%clk 0:02:39]}  Bxd5 {[%clk 0:02:23]} 19. exf6 {[%clk 0:02:36]}  exf6 {[%clk 0:02:23]} 20. Nxd5 {[%clk 0:02:23]}  Qxd5 {[%clk 0:02:22]} 21. Qxf6 {[%clk 0:02:23]}  Qf7 {[%clk 0:02:04]} 22. Qg5 {[%clk 0:02:19]}  Rad8 {[%clk 0:01:56]} 23. Be4 {[%clk 0:02:08]}  Nc6 {[%clk 0:01:50]} 24. h4 {[%clk 0:02:01]}  Nd4 {[%clk 0:01:47]} 25. h5 {[%clk 0:01:55]}  Rd6 {[%clk 0:01:42]} 26. hxg6 {[%clk 0:01:51]}  hxg6 {[%clk 0:01:42]} 27. Rd1 {[%clk 0:01:26]}  Rxe4 {[%clk 0:01:27]} 28. fxe4 {[%clk 0:01:22]}  Ne2+ {[%clk 0:01:26]} 29. Kh2 {[%clk 0:01:20]}  Rxd1 {[%clk 0:01:26]} 0-1


[Site "https://www.chess.com"]

[Event "Titled Tuesday Blitz July 11 Late 2023"]
[White "Funderburg, John T"]
[Black "Garmendiarov"]
[WhiteFideId "2004992"]
[WhiteElo "1993"]
[BlackElo "2340"]
[Result "0-1"]
[Round "6"]
[TimeControl "180+2"]
[Date "2023.07.11"]
[WhiteClock "0:00:44"]
[BlackClock "0:00:34"]
[Board "150"]

1. d4 {[%clk 0:03:00]}  Nf6 {[%clk 0:02:59]} 2. Nf3 {[%clk 0:02:59]}  g6 {[%clk 0:03:00]} 3. Bf4 {[%clk 0:02:58]}  Bg7 {[%clk 0:03:00]} 4. e3 {[%clk 0:02:58]}  O-O {[%clk 0:03:00]} 5. Be2 {[%clk 0:02:58]}  d6 {[%clk 0:03:00]} 6. h3 {[%clk 0:02:58]}  Nc6 {[%clk 0:03:00]} 7. Bh2 {[%clk 0:02:54]}  Ne4 {[%clk 0:02:56]} 8. Nbd2 {[%clk 0:02:49]}  Nxd2 {[%clk 0:02:52]} 9. Qxd2 {[%clk 0:02:46]}  e5 {[%clk 0:02:52]} 10. dxe5 {[%clk 0:02:45]}  dxe5 {[%clk 0:02:53]} 11. O-O-O {[%clk 0:02:37]}  Qe7 {[%clk 0:02:49]} 12. c3 {[%clk 0:02:34]}  Be6 {[%clk 0:02:44]} 13. Kb1 {[%clk 0:02:34]}  Rad8 {[%clk 0:02:27]} 14. Qc2 {[%clk 0:02:34]}  Qc5 {[%clk 0:02:03]} 15. Ng5 {[%clk 0:02:08]}  Bc4 {[%clk 0:01:52]} 16. Ne4 {[%clk 0:01:56]}  Qb5 {[%clk 0:01:43]} 17. Bxc4 {[%clk 0:01:47]}  Qxc4 {[%clk 0:01:44]} 18. g4 {[%clk 0:01:47]}  Rxd1+ {[%clk 0:01:22]} 19. Rxd1 {[%clk 0:01:46]}  Rd8 {[%clk 0:01:23]} 20. Rxd8+ {[%clk 0:01:46]}  Nxd8 {[%clk 0:01:24]} 21. g5 {[%clk 0:01:41]}  Qf1+ {[%clk 0:01:05]} 22. Qc1 {[%clk 0:01:38]}  Qxh3 {[%clk 0:01:04]} 23. Qd1 {[%clk 0:01:24]}  Ne6 {[%clk 0:00:58]} 24. Bg3 {[%clk 0:01:24]}  Qf5 {[%clk 0:00:57]} 25. Qd3 {[%clk 0:01:22]}  Nxg5 {[%clk 0:00:48]} 26. Qd8+ {[%clk 0:01:21]}  Bf8 {[%clk 0:00:49]} 27. Qxg5 {[%clk 0:01:10]}  Qxe4+ {[%clk 0:00:49]} 28. Kc1 {[%clk 0:01:10]}  h6 {[%clk 0:00:34]} 29. Qxe5 {[%clk 0:01:07]}  Qxe5 {[%clk 0:00:34]} 30. Bxe5 {[%clk 0:01:07]}  Bd6 {[%clk 0:00:34]} 31. Bxd6 {[%clk 0:01:06]}  cxd6 {[%clk 0:00:35]} 32. Kd2 {[%clk 0:00:44]}  f5 {[%clk 0:00:34]} 0-1


[Site "https://www.chess.com"]

[Event "Titled Tuesday Blitz July 11 Late 2023"]
[White "Silvestre, Christian"]
[Black "Curtis, John"]
[WhiteFideId "30956269"]
[BlackFideId "3200256"]
[WhiteElo "2338"]
[BlackElo "1992"]
[Result "0-1"]
[Round "6"]
[TimeControl "180+2"]
[Date "2023.07.11"]
[WhiteClock "0:01:58"]
[BlackClock "0:01:55"]
[Board "151"]

1. e4 {[%clk 0:03:00]}  e5 {[%clk 0:02:58]} 2. Nf3 {[%clk 0:03:01]}  Nc6 {[%clk 0:02:56]} 3. c3 {[%clk 0:03:01]}  Nf6 {[%clk 0:02:55]} 4. d3 {[%clk 0:02:54]}  d5 {[%clk 0:02:55]} 5. Qe2 {[%clk 0:02:54]}  Bg4 {[%clk 0:02:46]} 6. h3 {[%clk 0:02:52]}  Bxf3 {[%clk 0:02:45]} 7. Qxf3 {[%clk 0:02:51]}  d4 {[%clk 0:02:43]} 8. Be2 {[%clk 0:02:47]}  Be7 {[%clk 0:02:40]} 9. O-O {[%clk 0:02:46]}  O-O {[%clk 0:02:38]} 10. Qg3 {[%clk 0:02:46]}  Nd7 {[%clk 0:02:36]} 11. c4 {[%clk 0:02:42]}  Kh8 {[%clk 0:02:32]} 12. f4 {[%clk 0:02:41]}  exf4 {[%clk 0:02:22]} 13. Bxf4 {[%clk 0:02:41]}  Rc8 {[%clk 0:02:20]} 14. Nd2 {[%clk 0:02:37]}  g5 {[%clk 0:02:13]} 15. Bg4 {[%clk 0:02:07]}  gxf4 {[%clk 0:02:11]} 16. Qxf4 {[%clk 0:02:07]}  Bg5 {[%clk 0:02:03]} 17. Qf5 {[%clk 0:01:58]}  Bxd2 {[%clk 0:01:55]} 0-1


[Site "https://www.chess.com"]

[Event "Titled Tuesday Blitz July 11 Late 2023"]
[White "Gyulamiryan-koryun"]
[Black "Tsyhanchuk, Stanislav"]
[BlackFideId "13505130"]
[WhiteElo "1869"]
[BlackElo "2313"]
[Result "0-1"]
[Round "6"]
[TimeControl "180+2"]
[Date "2023.07.11"]
[WhiteClock "0:00:00"]
[BlackClock "0:00:48"]
[Board "154"]

1. e4 {[%clk 0:02:51]}  c5 {[%clk 0:03:00]} 2. Nf3 {[%clk 0:02:50]}  d6 {[%clk 0:03:00]} 3. d4 {[%clk 0:02:49]}  cxd4 {[%clk 0:03:01]} 4. Nxd4 {[%clk 0:02:49]}  Nf6 {[%clk 0:03:01]} 5. Nc3 {[%clk 0:02:48]}  a6 {[%clk 0:03:02]} 6. f3 {[%clk 0:02:46]}  e5 {[%clk 0:03:00]} 7. Nb3 {[%clk 0:02:45]}  Be6 {[%clk 0:03:00]} 8. Be3 {[%clk 0:02:45]}  Nbd7 {[%clk 0:03:00]} 9. Qd2 {[%clk 0:02:45]}  b5 {[%clk 0:03:00]} 10. O-O-O {[%clk 0:02:43]}  Nb6 {[%clk 0:02:57]} 11. Kb1 {[%clk 0:02:28]}  Nc4 {[%clk 0:02:51]} 12. Bxc4 {[%clk 0:02:26]}  bxc4 {[%clk 0:02:52]} 13. Nc1 {[%clk 0:02:24]}  Be7 {[%clk 0:02:47]} 14. g4 {[%clk 0:02:22]}  Nd7 {[%clk 0:02:42]} 15. Nd5 {[%clk 0:02:16]}  Bxd5 {[%clk 0:02:39]} 16. Qxd5 {[%clk 0:02:15]}  Rc8 {[%clk 0:02:38]} 17. c3 {[%clk 0:02:14]}  O-O {[%clk 0:02:37]} 18. h4 {[%clk 0:01:57]}  Nb6 {[%clk 0:02:33]} 19. Qb7 {[%clk 0:01:55]}  Rb8 {[%clk 0:02:23]} 20. Qxa6 {[%clk 0:01:52]}  Qc7 {[%clk 0:02:21]} 21. Bxb6 {[%clk 0:01:43]}  Rxb6 {[%clk 0:02:22]} 22. Qa4 {[%clk 0:01:37]}  Rfb8 {[%clk 0:02:19]} 23. Rd2 {[%clk 0:01:29]}  Qb7 {[%clk 0:02:15]} 24. b4 {[%clk 0:01:25]}  cxb3 {[%clk 0:02:13]} 25. axb3 {[%clk 0:01:18]}  Ra6 {[%clk 0:02:06]} 26. Qc4 {[%clk 0:01:16]}  Rba8 {[%clk 0:02:06]} 27. Ra2 {[%clk 0:01:10]}  Rxa2 {[%clk 0:02:04]} 28. Nxa2 {[%clk 0:01:10]}  Qa7 {[%clk 0:01:43]} 29. b4 {[%clk 0:01:07]}  Qf2 {[%clk 0:01:42]} 30. Rf1 {[%clk 0:01:00]}  Qg2 {[%clk 0:01:36]} 31. Rc1 {[%clk 0:00:48]}  Bxh4 {[%clk 0:01:32]} 32. Rc2 {[%clk 0:00:47]}  Qxf3 {[%clk 0:01:32]} 33. Qc6 {[%clk 0:00:41]}  Qd1+ {[%clk 0:01:14]} 34. Nc1 {[%clk 0:00:33]}  Rd8 {[%clk 0:01:13]} 35. Kb2 {[%clk 0:00:29]}  Bg5 {[%clk 0:01:11]} 36. Nb3 {[%clk 0:00:26]}  h6 {[%clk 0:01:07]} 37. Qd5 {[%clk 0:00:23]}  Qxg4 {[%clk 0:01:02]} 38. b5 {[%clk 0:00:21]}  Qd7 {[%clk 0:00:53]} 39. c4 {[%clk 0:00:16]}  Be3 {[%clk 0:00:51]} 40. Na5 {[%clk 0:00:14]}  Bd4+ {[%clk 0:00:49]} 41. Kb3 {[%clk 0:00:14]}  Qh3+ {[%clk 0:00:48]} 42. Ka2 {[%clk 0:00:00]}  Qd3 {[%clk 0:00:48]} 0-1


[Site "https://www.chess.com"]

[Event "Titled Tuesday Blitz July 11 Late 2023"]
[White "Elaisaz"]
[Black "Hartikainen, Jarmo"]
[BlackFideId "503134"]
[WhiteElo "2258"]
[BlackElo "2101"]
[Result "1-0"]
[Round "6"]
[TimeControl "180+2"]
[Date "2023.07.11"]
[WhiteClock "0:00:49"]
[BlackClock "0:00:00"]
[Board "160"]

1. d4 {[%clk 0:02:59]}  Nf6 {[%clk 0:02:59]} 2. Nf3 {[%clk 0:02:57]}  g6 {[%clk 0:02:58]} 3. Bf4 {[%clk 0:02:57]}  d6 {[%clk 0:02:56]} 4. Nbd2 {[%clk 0:02:52]}  Bg7 {[%clk 0:02:56]} 5. e4 {[%clk 0:02:52]}  Nbd7 {[%clk 0:02:54]} 6. Bd3 {[%clk 0:02:52]}  O-O {[%clk 0:02:24]} 7. O-O {[%clk 0:02:40]}  Re8 {[%clk 0:02:20]} 8. e5 {[%clk 0:02:39]}  Nh5 {[%clk 0:02:14]} 9. Bg5 {[%clk 0:02:10]}  dxe5 {[%clk 0:02:13]} 10. g4 {[%clk 0:02:10]}  Nf4 {[%clk 0:02:12]} 11. dxe5 {[%clk 0:02:08]}  Nxd3 {[%clk 0:02:09]} 12. cxd3 {[%clk 0:02:09]}  Nxe5 {[%clk 0:02:08]} 13. Nxe5 {[%clk 0:02:06]}  Bxe5 {[%clk 0:02:08]} 14. Nc4 {[%clk 0:02:04]}  Bg7 {[%clk 0:02:00]} 15. Re1 {[%clk 0:02:04]}  Be6 {[%clk 0:01:29]} 16. Qf3 {[%clk 0:01:59]}  c6 {[%clk 0:00:59]} 17. h4 {[%clk 0:01:42]}  h6 {[%clk 0:00:45]} 18. Bd2 {[%clk 0:01:40]}  Qd5 {[%clk 0:00:44]} 19. Qxd5 {[%clk 0:01:38]}  Bxd5 {[%clk 0:00:42]} 20. Rab1 {[%clk 0:01:30]}  Rad8 {[%clk 0:00:36]} 21. Bb4 {[%clk 0:01:26]}  e5 {[%clk 0:00:31]} 22. Nd6 {[%clk 0:01:23]}  Re7 {[%clk 0:00:18]} 23. Nf5 {[%clk 0:01:22]}  Ree8 {[%clk 0:00:16]} 24. Nxg7 {[%clk 0:01:22]}  Kxg7 {[%clk 0:00:17]} 25. Re3 {[%clk 0:01:16]}  Be6 {[%clk 0:00:17]} 26. f3 {[%clk 0:01:15]}  Rd5 {[%clk 0:00:15]} 27. Bc3 {[%clk 0:01:14]}  f6 {[%clk 0:00:14]} 28. g5 {[%clk 0:01:12]}  hxg5 {[%clk 0:00:12]} 29. hxg5 {[%clk 0:01:13]}  Red8 {[%clk 0:00:12]} 30. gxf6+ {[%clk 0:01:13]}  Kf7 {[%clk 0:00:10]} 31. Rxe5 {[%clk 0:01:06]}  Rxe5 {[%clk 0:00:09]} 32. Bxe5 {[%clk 0:01:05]}  Rxd3 {[%clk 0:00:10]} 33. Kg2 {[%clk 0:01:01]}  Bxa2 {[%clk 0:00:10]} 34. Ra1 {[%clk 0:01:00]}  Bd5 {[%clk 0:00:10]} 35. Rxa7 {[%clk 0:00:57]}  Rxf3 {[%clk 0:00:10]} 36. Rxb7+ {[%clk 0:00:56]}  Kg8 {[%clk 0:00:05]} 37. Rb8+ {[%clk 0:00:51]}  Kf7 {[%clk 0:00:04]} 38. Rb7+ {[%clk 0:00:51]}  Kg8 {[%clk 0:00:04]} 39. Rg7+ {[%clk 0:00:50]}  Kh8 {[%clk 0:00:00]} 40. Kg1 {[%clk 0:00:49]} 1-0


[Site "https://www.chess.com"]

[Event "Titled Tuesday Blitz July 11 Late 2023"]
[White "Vargas, Mauricio"]
[Black "Alexikov, Alexander"]
[WhiteFideId "4404572"]
[BlackFideId "14103958"]
[WhiteElo "1883"]
[BlackElo "2215"]
[Result "0-1"]
[Round "6"]
[TimeControl "180+2"]
[Date "2023.07.11"]
[WhiteClock "0:00:00"]
[BlackClock "0:00:30"]
[Board "162"]

1. e4 {[%clk 0:01:05]}  c5 {[%clk 0:01:44]} 2. Nc3 {[%clk 0:00:53]}  Nc6 {[%clk 0:01:41]} 3. f4 {[%clk 0:00:52]}  g6 {[%clk 0:01:41]} 4. Nf3 {[%clk 0:00:53]}  Bg7 {[%clk 0:01:41]} 5. Bb5 {[%clk 0:00:53]}  Nd4 {[%clk 0:01:39]} 6. Bf1 {[%clk 0:00:53]}  e6 {[%clk 0:01:38]} 7. d3 {[%clk 0:00:53]}  a6 {[%clk 0:01:35]} 8. g3 {[%clk 0:00:52]}  Ne7 {[%clk 0:01:35]} 9. Bg2 {[%clk 0:00:52]}  d6 {[%clk 0:01:34]} 10. O-O {[%clk 0:00:49]}  O-O {[%clk 0:01:34]} 11. Ne2 {[%clk 0:00:45]}  Rb8 {[%clk 0:01:20]} 12. Ng5 {[%clk 0:00:40]}  Ndc6 {[%clk 0:01:14]} 13. c3 {[%clk 0:00:38]}  h6 {[%clk 0:01:12]} 14. Nf3 {[%clk 0:00:38]}  f5 {[%clk 0:01:09]} 15. Qe1 {[%clk 0:00:39]}  Kh7 {[%clk 0:01:05]} 16. h3 {[%clk 0:00:37]}  Qc7 {[%clk 0:01:04]} 17. g4 {[%clk 0:00:35]}  Bd7 {[%clk 0:00:59]} 18. gxf5 {[%clk 0:00:34]}  exf5 {[%clk 0:00:57]} 19. Kh1 {[%clk 0:00:33]}  Ng8 {[%clk 0:00:54]} 20. Qh4 {[%clk 0:00:29]}  Qd8 {[%clk 0:00:49]} 21. Ng5+ {[%clk 0:00:24]}  Kh8 {[%clk 0:00:48]} 22. Nf7+ {[%clk 0:00:23]}  Rxf7 {[%clk 0:00:46]} 23. Qg3 {[%clk 0:00:20]}  Kh7 {[%clk 0:00:45]} 24. exf5 {[%clk 0:00:19]}  Bxf5 {[%clk 0:00:40]} 25. Ng1 {[%clk 0:00:17]}  Nf6 {[%clk 0:00:39]} 26. Nf3 {[%clk 0:00:15]}  Nh5 {[%clk 0:00:38]} 27. Qf2 {[%clk 0:00:08]}  Bxd3 {[%clk 0:00:36]} 28. Qd2 {[%clk 0:00:02]}  Bxf1 {[%clk 0:00:34]} 29. Bxf1 {[%clk 0:00:02]}  Nxf4 {[%clk 0:00:32]} 30. Ng5+ {[%clk 0:00:00]}  hxg5 {[%clk 0:00:30]} 0-1


[Site "https://www.chess.com"]

[Event "Titled Tuesday Blitz July 11 Late 2023"]
[White "Martinez Alcantara, Jose Eduardo"]
[Black "Ibarra Jerez, Jose Carlos"]
[WhiteFideId "3805662"]
[BlackFideId "2226332"]
[WhiteElo "3016"]
[BlackElo "2927"]
[Result "1-0"]
[Round "7"]
[TimeControl "180+2"]
[Date "2023.07.11"]
[WhiteClock "0:00:10"]
[BlackClock "0:00:00"]
[Board "7"]

1. e4 {[%clk 0:03:00]}  d5 {[%clk 0:03:00]} 2. exd5 {[%clk 0:03:00]}  Qxd5 {[%clk 0:03:01]} 3. Nc3 {[%clk 0:03:00]}  Qd8 {[%clk 0:03:01]} 4. d4 {[%clk 0:02:56]}  Nf6 {[%clk 0:03:01]} 5. Bc4 {[%clk 0:02:56]}  a6 {[%clk 0:02:57]} 6. a4 {[%clk 0:02:48]}  Bg4 {[%clk 0:02:22]} 7. Nf3 {[%clk 0:02:15]}  e6 {[%clk 0:02:20]} 8. h3 {[%clk 0:02:12]}  Bxf3 {[%clk 0:02:13]} 9. Qxf3 {[%clk 0:02:13]}  c6 {[%clk 0:02:13]} 10. Ne2 {[%clk 0:02:11]}  a5 {[%clk 0:02:09]} 11. c3 {[%clk 0:02:10]}  Nbd7 {[%clk 0:02:08]} 12. O-O {[%clk 0:02:06]}  Bd6 {[%clk 0:02:06]} 13. Ng3 {[%clk 0:02:06]}  O-O {[%clk 0:02:05]} 14. Be3 {[%clk 0:02:02]}  Re8 {[%clk 0:02:04]} 15. Rad1 {[%clk 0:01:56]}  Qc7 {[%clk 0:02:04]} 16. Bg5 {[%clk 0:01:51]}  h6 {[%clk 0:02:02]} 17. Bc1 {[%clk 0:01:51]}  Rad8 {[%clk 0:01:44]} 18. Bb3 {[%clk 0:01:48]}  c5 {[%clk 0:01:38]} 19. Ne2 {[%clk 0:01:36]}  e5 {[%clk 0:01:31]} 20. Ng3 {[%clk 0:01:23]}  e4 {[%clk 0:01:28]} 21. Qe3 {[%clk 0:01:23]}  c4 {[%clk 0:01:26]} 22. Bc2 {[%clk 0:01:22]}  Nd5 {[%clk 0:01:27]} 23. Qe2 {[%clk 0:01:19]}  Bxg3 {[%clk 0:01:18]} 24. fxg3 {[%clk 0:01:19]}  Qxg3 {[%clk 0:01:15]} 25. Qxc4 {[%clk 0:01:15]}  N7f6 {[%clk 0:01:10]} 26. Rde1 {[%clk 0:01:15]}  e3 {[%clk 0:01:06]} 27. Qe2 {[%clk 0:00:56]}  Nf4 {[%clk 0:01:03]} 28. Rxf4 {[%clk 0:00:56]}  Qxf4 {[%clk 0:01:03]} 29. Bxe3 {[%clk 0:00:57]}  Qg3 {[%clk 0:00:55]} 30. Qf2 {[%clk 0:00:56]}  Qxf2+ {[%clk 0:00:52]} 31. Kxf2 {[%clk 0:00:57]}  Nd5 {[%clk 0:00:49]} 32. Bd2 {[%clk 0:00:58]}  Rxe1 {[%clk 0:00:49]} 33. Kxe1 {[%clk 0:00:59]}  Re8+ {[%clk 0:00:47]} 34. Kf2 {[%clk 0:00:59]}  h5 {[%clk 0:00:37]} 35. Kf3 {[%clk 0:00:57]}  g6 {[%clk 0:00:34]} 36. Be4 {[%clk 0:00:54]}  Rd8 {[%clk 0:00:34]} 37. c4 {[%clk 0:00:41]}  Nf6 {[%clk 0:00:34]} 38. Bxb7 {[%clk 0:00:35]}  Rxd4 {[%clk 0:00:27]} 39. Bc3 {[%clk 0:00:35]}  Rd7 {[%clk 0:00:18]} 40. Bc6 {[%clk 0:00:36]}  Rd6 {[%clk 0:00:15]} 41. Bb5 {[%clk 0:00:37]}  Nd7 {[%clk 0:00:09]} 42. Bxa5 {[%clk 0:00:34]}  Ne5+ {[%clk 0:00:09]} 43. Ke4 {[%clk 0:00:31]}  f6 {[%clk 0:00:09]} 44. c5 {[%clk 0:00:28]}  Rd1 {[%clk 0:00:09]} 45. Bc3 {[%clk 0:00:27]}  Kf7 {[%clk 0:00:08]} 46. c6 {[%clk 0:00:27]}  Rd8 {[%clk 0:00:03]} 47. Ba5 {[%clk 0:00:17]}  Rc8 {[%clk 0:00:02]} 48. c7 {[%clk 0:00:17]}  Ke6 {[%clk 0:00:03]} 49. Ba6 {[%clk 0:00:17]}  f5+ {[%clk 0:00:03]} 50. Kf4 {[%clk 0:00:10]}  Ra8 {[%clk 0:00:00]} 51. c8=Q+ {[%clk 0:00:10]} 1-0


[Site "https://www.chess.com"]

[Event "Titled Tuesday Blitz July 11 Late 2023"]
[White "Andreikin, Dmitry"]
[Black "Durarbayli, Vasif"]
[WhiteFideId "4158814"]
[BlackFideId "13402935"]
[WhiteElo "3011"]
[BlackElo "2923"]
[Result "1-0"]
[Round "7"]
[TimeControl "180+2"]
[Date "2023.07.11"]
[WhiteClock "0:00:13"]
[BlackClock "0:00:00"]
[Board "8"]

1. e4 {[%clk 0:03:00]}  c5 {[%clk 0:02:56]} 2. Nc3 {[%clk 0:03:00]}  Nc6 {[%clk 0:02:56]} 3. Bb5 {[%clk 0:02:59]}  Nd4 {[%clk 0:02:55]} 4. Nf3 {[%clk 0:02:59]}  e6 {[%clk 0:02:54]} 5. O-O {[%clk 0:02:58]}  Ne7 {[%clk 0:02:51]} 6. Re1 {[%clk 0:02:55]}  a6 {[%clk 0:02:40]} 7. Bf1 {[%clk 0:02:52]}  b5 {[%clk 0:02:23]} 8. Nxd4 {[%clk 0:02:47]}  cxd4 {[%clk 0:02:24]} 9. Ne2 {[%clk 0:02:47]}  Qb6 {[%clk 0:02:24]} 10. c3 {[%clk 0:02:41]}  dxc3 {[%clk 0:02:17]} 11. dxc3 {[%clk 0:02:42]}  Bb7 {[%clk 0:02:15]} 12. Be3 {[%clk 0:02:41]}  Qc7 {[%clk 0:02:13]} 13. Ng3 {[%clk 0:02:40]}  Ng6 {[%clk 0:02:11]} 14. Qh5 {[%clk 0:02:34]}  Be7 {[%clk 0:01:57]} 15. a4 {[%clk 0:02:29]}  bxa4 {[%clk 0:01:47]} 16. Rxa4 {[%clk 0:02:28]}  O-O {[%clk 0:01:47]} 17. Qa5 {[%clk 0:02:27]}  Qb8 {[%clk 0:01:38]} 18. Ra2 {[%clk 0:02:15]}  d5 {[%clk 0:01:33]} 19. Bc5 {[%clk 0:01:55]}  dxe4 {[%clk 0:01:14]} 20. Nxe4 {[%clk 0:01:52]}  Bd5 {[%clk 0:01:13]} 21. c4 {[%clk 0:01:42]}  Bxe4 {[%clk 0:01:11]} 22. Rxe4 {[%clk 0:01:43]}  Bxc5 {[%clk 0:00:56]} 23. Qxc5 {[%clk 0:01:44]}  Rc8 {[%clk 0:00:56]} 24. Qa3 {[%clk 0:01:35]}  a5 {[%clk 0:00:49]} 25. h4 {[%clk 0:01:34]}  Ne5 {[%clk 0:00:47]} 26. h5 {[%clk 0:01:28]}  h6 {[%clk 0:00:48]} 27. Qe3 {[%clk 0:01:13]}  Nc6 {[%clk 0:00:43]} 28. Rg4 {[%clk 0:01:13]}  Kf8 {[%clk 0:00:18]} 29. Qc5+ {[%clk 0:00:53]}  Kg8 {[%clk 0:00:18]} 30. Qe3 {[%clk 0:00:53]}  Kf8 {[%clk 0:00:18]} 31. c5 {[%clk 0:00:42]}  Qe5 {[%clk 0:00:13]} 32. Qxe5 {[%clk 0:00:42]}  Nxe5 {[%clk 0:00:14]} 33. Rga4 {[%clk 0:00:43]}  Rxc5 {[%clk 0:00:02]} 34. b4 {[%clk 0:00:42]}  Rc1 {[%clk 0:00:03]} 35. Rxa5 {[%clk 0:00:41]}  Rb8 {[%clk 0:00:02]} 36. Rxe5 {[%clk 0:00:38]}  Rxb4 {[%clk 0:00:03]} 37. f3 {[%clk 0:00:34]}  Rbb1 {[%clk 0:00:03]} 38. Rf2 {[%clk 0:00:34]}  Ke7 {[%clk 0:00:04]} 39. g3 {[%clk 0:00:32]}  f5 {[%clk 0:00:02]} 40. Kg2 {[%clk 0:00:30]}  Kf6 {[%clk 0:00:02]} 41. f4 {[%clk 0:00:30]}  Re1 {[%clk 0:00:03]} 42. Rxe1 {[%clk 0:00:24]}  Rxe1 {[%clk 0:00:04]} 43. Re2 {[%clk 0:00:23]}  Rc1 {[%clk 0:00:04]} 44. Re3 {[%clk 0:00:21]}  Rc2+ {[%clk 0:00:04]} 45. Kf3 {[%clk 0:00:21]}  Rc6 {[%clk 0:00:04]} 46. Re5 {[%clk 0:00:17]}  g5 {[%clk 0:00:03]} 47. Bd3 {[%clk 0:00:14]}  Rc3 {[%clk 0:00:02]} 48. Ke3 {[%clk 0:00:13]}  gxf4+ {[%clk 0:00:02]} 49. gxf4 {[%clk 0:00:13]}  Ra3 {[%clk 0:00:03]} 50. Kd4 {[%clk 0:00:14]}  Ra8 {[%clk 0:00:01]} 51. Bc4 {[%clk 0:00:14]}  Rd8+ {[%clk 0:00:02]} 52. Kc5 {[%clk 0:00:14]}  Rc8+ {[%clk 0:00:03]} 53. Kb5 {[%clk 0:00:13]}  Rb8+ {[%clk 0:00:03]} 54. Ka6 {[%clk 0:00:13]}  Re8 {[%clk 0:00:00]} 55. Kb7 {[%clk 0:00:13]} 1-0


[Site "https://www.chess.com"]